lending/lending_fUSD_20240621
["ID","MTS","AMOUNT","RATE_DAILY","PERIOD"]
[330035269,1718956623259,-500.0,0.00041369,31]
[330035270,1718956623283,-500.0,0.00041369,31]
[330035271,1718956623308,-500.0,0.00041369,31]
[330035272,1718956623332,-1432.67,0.00041369,31]
[330035273,1718956623357,-1111.39,0.00041369,31]
[330035274,1718956623387,-1635.92,0.00041369,31]
[330035275,1718956623412,-538.78445491,0.00041369,31]
[330035276,1718956623436,-500.0,0.00041369,31]
[330035277,1718956623461,-500.0,0.00041369,31]
[330035278,1718956623485,-500.0,0.00041369,31]
[330035279,1718956623510,-500.0,0.00041369,31]
[330035280,1718956623535,-500.0,0.00041369,31]
[330035281,1718956623560,-500.0,0.00041369,31]
[330035282,1718956623586,-244.72023958,0.00041369,31]
[330035283,1718956623611,-500.0,0.00041369,31]
[330035284,1718956623641,-500.0,0.00041369,31]
[330035285,1718956623666,-500.0,0.00041369,31]
[330035286,1718956623689,-500.0,0.00041369,31]
[330035287,1718956623714,-652.24,0.00041369,31]
[330035288,1718956623738,-526.05465697,0.00041369,31]
[330035289,1718956623762,-500.0,0.00041369,31]
[330035290,1718956623786,-820.38,0.00041369,31]
[330035291,1718956623811,-853.86,0.00041369,31]
[330035292,1718956623838,-560.61,0.00041369,31]
[330035293,1718956623862,-500.0,0.00041369,31]
[330035294,1718956623888,-500.0,0.00041369,31]
[330035295,1718956623915,-751.95,0.00041369,120]
[330035296,1718956623938,-500.0,0.00041369,31]
[330035297,1718956623961,-803.6,0.00041369,31]
[330035298,1718956623985,-545.71,0.00041369,31]
[330035299,1718956624009,-525.75231362,0.00041369,31]
[330035300,1718956624034,-500.0,0.00041369,31]
[330035301,1718956624058,-502.44799939,0.00041369,31]
[330035302,1718956624081,-500.0,0.00041369,31]
[330035303,1718956624105,-561.06,0.00041369,31]
[330035304,1718956624335,-1411.32,0.00041369,31]
[330035305,1718956624360,-714.43,0.00041369,31]
[330035306,1718956624386,-500.0,0.00041369,31]
[330035307,1718956624410,-500.0,0.00041369,31]
[330035308,1718956624434,-500.0,0.00041369,31]
[330035309,1718956624459,-592.38,0.00041369,31]
[330035310,1718956624483,-500.0,0.00041369,31]
[330035311,1718956624508,-511.62,0.00041369,31]
[330035312,1718956624532,-500.0,0.00041369,31]
[330035313,1718956624556,-597.98,0.00041369,31]
[330035314,1718956624581,-500.0,0.00041369,31]
[330035315,1718956624607,-559.72,0.00041369,31]
[330035316,1718956624635,-500.0,0.00041369,31]
[330035317,1718956624661,-1755.1,0.00041369,31]
[330035318,1718956624686,-1205.72,0.00041369,31]
[330035319,1718956624710,-500.0,0.00041369,31]
[330035320,1718956624735,-745.53,0.00041369,31]
[330035321,1718956624759,-977.06,0.00041369,31]
[330035322,1718956624784,-500.0,0.00041369,31]
[330035323,1718956624810,-1292.73,0.00041369,31]
[330035324,1718956624836,-500.0,0.00041369,31]
[330035325,1718956624861,-1038.42,0.00041369,31]
[330035326,1718956624890,-525.02,0.00041369,31]
[330035327,1718956624921,-500.0,0.00041369,31]
[330035328,1718956624947,-500.0,0.00041369,31]
[330035329,1718956624972,-500.0,0.00041369,31]
[330035330,1718956624996,-500.0,0.00041369,31]
[330035331,1718956625021,-500.0,0.00041369,31]
[330035332,1718956625046,-500.0,0.00041369,31]
[330035333,1718956625070,-500.0,0.00041369,31]
[330035334,1718956625095,-500.0,0.00041369,31]
[330035335,1718956625120,-1318.48,0.00041369,31]
[330035336,1718956625144,-500.0,0.00041369,31]
[330035337,1718956625169,-500.0,0.00041369,31]
[330035338,1718956625194,-533.66,0.00041369,31]
[330035339,1718956625219,-2112.62,0.00041369,31]
[330035340,1718956625243,-760.35,0.00041369,31]
[330035341,1718956625268,-1515.35,0.00041369,31]
[330035342,1718956625292,-549.09233102,0.00041369,31]
[330035343,1718956625315,-500.0,0.00041369,31]
[330035344,1718956625340,-733.36,0.00041369,31]
[330035345,1718956625364,-382.17778523,0.00041369,31]
[330035346,1718956625389,-614.66,0.00041369,31]
[330035347,1718956625414,-500.0,0.00041369,31]
[330035348,1718956625439,-500.0,0.00041369,31]
[330035349,1718956625464,-1818.36,0.00041369,31]
[330035350,1718956625489,-500.0,0.00041369,31]
[330035351,1718956625515,-500.0,0.00041369,31]
[330035352,1718956625540,-500.0,0.00041369,31]
[330035353,1718956625564,-500.0,0.00041369,31]
[330035354,1718956625589,-500.0,0.00041369,31]
[330035355,1718956625612,-500.0,0.00041369,31]
[330035356,1718956625638,-500.0,0.00041369,31]
[330035357,1718956625664,-734.54,0.00041369,31]
[330035358,1718956625688,-402.55324533,0.00041369,31]
[330035359,1718956625713,-500.0,0.00041369,31]
[330035360,1718956625737,-748.46,0.00041369,31]
[330035361,1718956625762,-500.0,0.00041369,31]
[330035362,1718956625787,-376.11666341,0.00041369,31]
[330035363,1718956625814,-670.99,0.00041369,31]
[330035364,1718956625841,-612.85,0.00041369,31]
[330035365,1718956625870,-500.0,0.00041369,31]
[330035366,1718956625894,-500.0,0.00041369,31]
[330035367,1718956625921,-2032.2,0.00041369,31]
[330035368,1718956625945,-500.0,0.00041369,31]
[330035369,1718956625970,-531.03,0.00041369,31]
[330035370,1718956625995,-500.0,0.00041369,31]
[330035371,1718956626019,-500.0,0.00041369,31]
[330035372,1718956626043,-500.0,0.00041369,31]
[330035373,1718956626067,-520.64536295,0.00041369,31]
[330035374,1718956626092,-1637.8,0.00041369,31]
[330035375,1718956626119,-500.0,0.00041369,31]
[330035376,1718956626144,-500.0,0.00041369,31]
[330035377,1718956626170,-3313.85,0.00041369,30]
[330035378,1718956626194,-500.0,0.00041369,31]
[330035379,1718956626218,-735.27,0.00041369,31]
[330035380,1718956626242,-500.0,0.00041369,31]
[330035381,1718956626267,-500.0,0.00041369,31]
[330035382,1718956626292,-500.0,0.00041369,31]
[330035383,1718956626316,-500.0,0.00041369,31]
[330035384,1718956626341,-500.0,0.00041369,31]
[330035385,1718956626367,-500.0,0.00041369,31]
[330035386,1718956626391,-500.0,0.00041369,31]
[330035387,1718956626415,-363.00389051,0.00041369,31]
[330035388,1718956626438,-500.0,0.00041369,31]
[330035389,1718956626463,-500.0,0.00041369,31]
[330035390,1718956626490,-500.0,0.00041369,31]
[330035391,1718956626519,-500.0,0.00041369,31]
[330035392,1718956626545,-1039.06,0.00041369,31]
[330035393,1718956626574,-500.0,0.00041369,31]
[330035394,1718956626600,-1160.78,0.00041369,31]
[330035395,1718956626627,-500.0,0.00041369,31]
[330035396,1718956626655,-500.0,0.00041369,31]
[330035397,1718956626680,-500.0,0.00041369,31]
[330035398,1718956626705,-500.0,0.00041369,31]
[330035399,1718956626733,-500.0,0.00041369,31]
[330035400,1718956626760,-500.0,0.00041369,31]
[330035401,1718956626785,-500.0,0.00041369,31]
[330035402,1718956626810,-502.61495375,0.00041369,31]
[330035403,1718956626836,-2862.11,0.00041369,31]
[330035404,1718956626861,-500.0,0.00041369,31]
[330035405,1718956626889,-500.0,0.00041369,31]
[330035406,1718956626916,-500.0,0.00041369,31]
[330035407,1718956626943,-500.0,0.00041369,31]
[330035408,1718956627167,-500.0,0.00041369,31]
[330035409,1718956627190,-500.0,0.00041369,31]
[330035410,1718956627214,-500.0,0.00041369,31]
[330035411,1718956627240,-500.0,0.00041369,31]
[330035412,1718956627263,-921.75,0.00041369,31]
[330035413,1718956627287,-500.0,0.00041369,31]
[330035414,1718956627310,-500.0,0.00041369,31]
[330035415,1718956627338,-500.0,0.00041369,31]
[330035416,1718956627362,-500.0,0.00041369,31]
[330035417,1718956627387,-500.0,0.00041369,31]
[330035418,1718956627410,-500.0,0.00041369,31]
[330035419,1718956627434,-500.0,0.00041369,31]
[330035420,1718956627459,-500.0,0.00041369,31]
[330035421,1718956627483,-610.65101437,0.00041369,31]
[330035422,1718956627507,-500.0,0.00041369,31]
[330035423,1718956627533,-500.0,0.00041369,31]
[330035424,1718956627558,-1477.77,0.00041369,31]
[330035425,1718956627585,-500.0,0.00041369,31]
[330035426,1718956627612,-500.0,0.00041369,31]
[330035427,1718956627637,-500.0,0.00041369,31]
[330035428,1718956627662,-500.0,0.00041369,31]
[330035429,1718956627686,-557.27,0.00041369,31]
[330035430,1718956627710,-704.0,0.00041369,31]
[330035431,1718956627734,-185.56724816,0.00041369,31]
[330035432,1718956627760,-649.31,0.00041369,31]
[330035433,1718956627784,-500.0,0.00041369,31]
[330035434,1718956627811,-500.0,0.00041369,31]
[330035435,1718956627838,-1202.28,0.00041369,31]
[330035436,1718956627864,-500.0,0.00041369,31]
[330035437,1718956627889,-500.0,0.00041369,31]
[330035438,1718956627913,-516.09683566,0.00041369,31]
[330035439,1718956627938,-521.07,0.00041369,31]
[330035440,1718956627962,-500.0,0.00041369,31]
[330035441,1718956627985,-1013.22,0.00041369,31]
[330035442,1718956628009,-654.5,0.00041369,31]
[330035443,1718956628036,-623.67,0.00041369,31]
[330035444,1718956628060,-500.0,0.00041369,31]
[330035445,1718956628083,-500.0,0.00041369,31]
[330035446,1718956628107,-824.84,0.00041369,31]
[330035447,1718956628134,-500.0,0.00041369,31]
[330035448,1718956628160,-1334.38,0.00041369,31]
[330035449,1718956628185,-500.0,0.00041369,31]
[330035450,1718956628210,-500.0,0.00041369,31]
[330035451,1718956628235,-500.0,0.00041369,31]
[330035452,1718956628260,-500.0,0.00041369,31]
[330035453,1718956628284,-500.0,0.00041369,31]
[330035454,1718956628308,-500.0,0.00041369,31]
[330035455,1718956628333,-1479.55,0.00041369,31]
[330035456,1718956628358,-500.0,0.00041369,31]
[330035457,1718956628383,-1136.63,0.00041369,31]
[330035458,1718956628406,-500.0,0.00041369,31]
[330035459,1718956628431,-500.0,0.00041369,31]
[330035460,1718956628454,-500.0,0.00041369,31]
[330035461,1718956628478,-500.0,0.00041369,31]
[330035462,1718956628503,-576.54,0.00041369,31]
[330035463,1718956628530,-500.0,0.00041369,31]
[330035464,1718956628555,-1930.64,0.00041369,31]
[330035465,1718956628578,-634.67,0.00041369,31]
[330035466,1718956628603,-500.0,0.00041369,31]
[330035467,1718956628629,-500.0,0.00041369,31]
[330035468,1718956628652,-500.0,0.00041369,31]
[330035469,1718956628675,-1053.39,0.00041369,31]
[330035470,1718956628699,-500.0,0.00041369,31]
[330035471,1718956628724,-500.0,0.00041369,31]
[330035472,1718956628747,-694.25,0.00041369,31]
[330035473,1718956628770,-500.0,0.00041369,31]
[330035474,1718956628793,-500.0,0.00041369,31]
[330035475,1718956628817,-732.79,0.00041369,31]
[330035476,1718956628844,-2043.71,0.00041369,31]
[330035477,1718956628868,-500.0,0.00041369,31]
[330035478,1718956628894,-500.0,0.00041369,31]
[330035479,1718956628921,-500.0,0.00041369,31]
[330035480,1718956628946,-334.62356031,0.00041369,31]
[330035481,1718956628970,-1198.81,0.00041369,31]
[330035482,1718956628993,-524.82,0.00041369,31]
[330035483,1718956629019,-547.56,0.00041369,31]
[330035484,1718956629042,-500.0,0.00041369,31]
[330035485,1718956629066,-500.0,0.00041369,31]
[330035486,1718956629089,-498.51536391,0.00041369,31]
[330035487,1718956629112,-598.88,0.00041369,31]
[330035488,1718956629139,-500.0,0.00041369,31]
[330035489,1718956629163,-324.73541783,0.00041369,31]
[330035490,1718956629187,-500.0,0.00041369,31]
[330035491,1718956629211,-500.0,0.00041369,31]
[330035492,1718956629235,-500.0,0.00041369,31]
[330035493,1718956629258,-1091.37,0.00041369,31]
[330035494,1718956629282,-500.0,0.00041369,31]
[330035495,1718956629305,-500.0,0.00041369,31]
[330035496,1718956629329,-608.99,0.00041369,31]
[330035497,1718956629353,-1305.69,0.00041369,31]
[330035498,1718956629382,-503.01,0.00041369,31]
[330035499,1718956629405,-1710.03,0.00041369,31]
[330035500,1718956629429,-500.0,0.00041369,31]
[330035501,1718956629453,-535.03,0.00041369,31]
[330035502,1718956629476,-500.0,0.00041369,31]
[330035503,1718956629498,-500.0,0.00041369,31]
[330035504,1718956629522,-751.31,0.00041369,31]
[330035505,1718956629544,-500.0,0.00041369,31]
[330035506,1718956629567,-500.0,0.00041369,31]
[330035507,1718956629589,-500.0,0.00041369,31]
[330035508,1718956629612,-523.08,0.00041369,31]
[330035509,1718956629638,-1029.71,0.00041369,31]
[330035510,1718956629661,-778.1,0.00041369,31]
[330035511,1718956629857,-500.0,0.00041369,31]
[330035512,1718956629913,-500.0,0.00041369,31]
[330035513,1718956629937,-521.08,0.00041369,31]
[330035514,1718956629960,-500.0,0.00041369,31]
[330035515,1718956629983,-500.0,0.00041369,31]
[330035516,1718956630006,-938.77,0.00041369,31]
[330035517,1718956630029,-796.24,0.00041369,31]
[330035518,1718956630052,-500.0,0.00041369,31]
[330035519,1718956630075,-577.45,0.00041369,31]
[330035520,1718956630098,-631.09,0.00041369,31]
[330035521,1718956630124,-813.4,0.00041369,31]
[330035522,1718956630147,-500.0,0.00041369,31]
[330035523,1718956630179,-836.15,0.00041369,31]
[330035524,1718956630210,-814.17,0.00041369,31]
[330035525,1718956630240,-514.67927729,0.00041369,31]
[330035526,1718956630267,-523.5953079,0.00041369,31]
[330035527,1718956630293,-798.17,0.00041369,31]
[330035528,1718956630320,-947.26,0.00041369,31]
[330035529,1718956630344,-500.0,0.00041369,31]
[330035530,1718956630372,-664.08,0.00041369,31]
[330035531,1718956630398,-500.0,0.00041369,31]
[330035532,1718956630423,-1110.12,0.00041369,31]
[330035533,1718956630451,-500.0,0.00041369,31]
[330035534,1718956630478,-500.0,0.00041369,31]
[330035535,1718956630502,-518.84767542,0.00041369,31]
[330035536,1718956630527,-2083.15,0.00041369,31]
[330035537,1718956630552,-500.0,0.00041369,31]
[330035538,1718956630578,-500.0,0.00041369,31]
[330035539,1718956630602,-500.0,0.00041369,31]
[330035540,1718956630627,-500.0,0.00041369,31]
[330035541,1718956630652,-568.87,0.00041369,31]
[330035542,1718956630676,-500.0,0.00041369,31]
[330035543,1718956630700,-500.0,0.00041369,31]
[330035544,1718956630724,-913.33,0.00041369,31]
[330035545,1718956630750,-542.93,0.00041369,31]
[330035546,1718956630776,-904.22,0.00041369,31]
[330035547,1718956630803,-500.0,0.00041369,31]
[330035548,1718956630839,-1725.1,0.00041369,31]
[330035549,1718956630864,-500.0,0.00041369,31]
[330035550,1718956630892,-500.0,0.00041369,31]
[330035551,1718956630918,-1654.09,0.00041369,31]
[330035552,1718956630946,-500.0,0.00041369,31]
[330035553,1718956630971,-1266.6,0.00041369,31]
[330035554,1718956630997,-500.0,0.00041369,31]
[330035555,1718956631022,-500.0,0.00041369,31]
[330035556,1718956631047,-500.0,0.00041369,31]
[330035557,1718956631072,-679.53,0.00041369,31]
[330035558,1718956631097,-1634.34,0.00041369,31]
[330035559,1718956631125,-500.0,0.00041369,31]
[330035560,1718956631151,-500.0,0.00041369,31]
[330035561,1718956631177,-1195.59,0.00041369,31]
[330035562,1718956631203,-1647.62,0.00041369,31]
[330035563,1718956631229,-1276.61,0.00041369,31]
[330035564,1718956631255,-500.0,0.00041369,31]
[330035565,1718956631281,-500.0,0.00041369,31]
[330035566,1718956631308,-500.0,0.00041369,31]
[330035567,1718956631335,-542.12,0.00041369,31]
[330035568,1718956631361,-1692.27,0.00041369,31]
[330035569,1718956631387,-500.0,0.00041369,31]
[330035570,1718956631412,-500.0,0.00041369,31]
[330035571,1718956631438,-437.80576129,0.00041369,31]
[330035572,1718956631464,-500.0,0.00041369,31]
[330035573,1718956631491,-244.78214292,0.00041369,31]
[330035574,1718956631517,-500.0,0.00041369,31]
[330035575,1718956631542,-1532.07,0.00041369,31]
[330035576,1718956631567,-500.0,0.00041369,31]
[330035577,1718956631592,-648.64,0.00041369,31]
[330035578,1718956631617,-2188.81,0.00041369,31]
[330035579,1718956631644,-524.1,0.00041369,31]
[330035580,1718956631669,-583.6,0.00041369,31]
[330035581,1718956631694,-1891.87,0.00041369,31]
[330035582,1718956631719,-741.01,0.00041369,31]
[330035583,1718956631742,-869.31,0.00041369,31]
[330035584,1718956631766,-500.0,0.00041369,31]
[330035585,1718956631791,-500.0,0.00041369,31]
[330035586,1718956631816,-500.0,0.00041369,31]
[330035587,1718956631846,-500.0,0.00041369,31]
[330035588,1718956631870,-979.44,0.00041369,31]
[330035589,1718956631894,-500.0,0.00041369,31]
[330035590,1718956631921,-500.0,0.00041369,31]
[330035591,1718956631944,-642.81,0.00041369,31]
[330035592,1718956631969,-500.0,0.00041369,31]
[330035593,1718956631993,-500.0,0.00041369,31]
[330035594,1718956632017,-817.31,0.00041369,31]
[330035595,1718956632041,-500.0,0.00041369,31]
[330035596,1718956632065,-1990.64,0.00041369,31]
[330035597,1718956632088,-500.0,0.00041369,31]
[330035598,1718956632112,-500.0,0.00041369,31]
[330035599,1718956632137,-500.0,0.00041369,31]
[330035600,1718956632159,-500.0,0.00041369,31]
[330035601,1718956632183,-500.0,0.00041369,31]
[330035602,1718956632207,-500.0,0.00041369,31]
[330035603,1718956632231,-2125.76,0.00041369,31]
[330035604,1718956632256,-500.0,0.00041369,31]
[330035605,1718956632281,-284.8834249,0.00041369,31]
[330035606,1718956632306,-618.15,0.00041369,31]
[330035607,1718956632331,-500.0,0.00041369,31]
[330035608,1718956632358,-500.0,0.00041369,31]
[330035609,1718956632384,-1408.0,0.00041369,31]
[330035610,1718956632412,-1644.48,0.00041369,31]
[330035611,1718956632437,-500.0,0.00041369,31]
[330035612,1718956632461,-500.0,0.00041369,31]
[330035613,1718956632485,-1081.88,0.00041369,31]
[330035614,1718956632510,-500.0,0.00041369,31]
[330035615,1718956632743,-500.0,0.00041369,31]
[330035616,1718956632768,-1130.5,0.00041369,31]
[330035617,1718956632793,-500.0,0.00041369,31]
[330035618,1718956632817,-500.0,0.00041369,31]
[330035619,1718956632846,-2370.45,0.00041369,31]
[330035620,1718956632875,-500.0,0.00041369,31]
[330035621,1718956632898,-561.98289708,0.00041369,31]
[330035622,1718956632925,-9754.86,0.00041369,31]
[330035623,1718956632951,-862.92,0.00041369,31]
[330035624,1718956632977,-500.0,0.00041369,31]
[330035625,1718956633004,-500.0,0.00041369,31]
[330035626,1718956633029,-500.0,0.00041369,31]
[330035627,1718956633053,-912.28,0.00041369,31]
[330035628,1718956633078,-855.26,0.00041369,31]
[330035629,1718956633103,-500.0,0.00041369,31]
[330035630,1718956633129,-1862.16,0.00041369,31]
[330035631,1718956633154,-947.23,0.00041369,31]
[330035632,1718956633178,-500.0,0.00041369,31]
[330035633,1718956633202,-774.42,0.00041369,31]
[330035634,1718956633227,-500.0,0.00041369,31]
[330035635,1718956633255,-500.0,0.00041369,31]
[330035636,1718956633280,-1081.69,0.00041369,31]
[330035637,1718956633303,-500.0,0.00041369,31]
[330035638,1718956633328,-2940.37,0.00041369,31]
[330035639,1718956633352,-500.0,0.00041369,31]
[330035640,1718956633380,-1073.21,0.00041369,31]
[330035641,1718956633404,-173.67827699,0.00041369,31]
[330035642,1718956633428,-500.0,0.00041369,31]
[330035643,1718956633452,-500.0,0.00041369,31]
[330035644,1718956633476,-500.0,0.00041369,31]
[330035645,1718956633499,-500.0,0.00041369,31]
[330035646,1718956633524,-500.0,0.00041369,31]
[330035647,1718956633550,-1167.67,0.00041369,31]
[330035648,1718956633575,-627.26,0.00041369,31]
[330035649,1718956633599,-500.0,0.00041369,31]
[330035650,1718956633624,-1329.19,0.00041369,31]
[330035651,1718956633648,-500.0,0.00041369,31]
[330035652,1718956633672,-500.0,0.00041369,31]
[330035653,1718956633697,-500.0,0.00041369,31]
[330035654,1718956633723,-1066.12,0.00041369,31]
[330035655,1718956633748,-774.59,0.00041369,31]
[330035656,1718956633772,-500.0,0.00041369,31]
[330035657,1718956633796,-500.0,0.00041369,31]
[330035658,1718956633821,-500.0,0.00041369,31]
[330035659,1718956633850,-500.0,0.00041369,31]
[330035660,1718956633876,-500.0,0.00041369,31]
[330035661,1718956633901,-500.0,0.00041369,31]
[330035662,1718956633930,-500.0,0.00041369,31]
[330035663,1718956633957,-500.0,0.00041369,31]
[330035664,1718956633982,-32551.53,0.00041369,31]
[330035665,1718956634006,-885.68,0.00041369,31]
[330035666,1718956634034,-500.0,0.00041369,31]
[330035667,1718956634060,-500.0,0.00041369,31]
[330035668,1718956634084,-500.0,0.00041369,31]
[330035669,1718956634108,-500.0,0.00041369,31]
[330035670,1718956634133,-500.0,0.00041369,31]
[330035671,1718956634157,-500.0,0.00041369,31]
[330035672,1718956634181,-838.21,0.00041369,31]
[330035673,1718956634204,-13496.77,0.00041369,31]
[330035674,1718956634227,-500.0,0.00041369,31]
[330035675,1718956634250,-500.0,0.00041369,31]
[330035676,1718956634273,-1218.16,0.00041369,31]
[330035677,1718956634298,-500.0,0.00041369,31]
[330035678,1718956634321,-500.0,0.00041369,31]
[330035679,1718956634344,-950.19,0.00041369,31]
[330035680,1718956634369,-697.69,0.00041369,31]
[330035681,1718956634393,-500.0,0.00041369,31]
[330035682,1718956634416,-500.0,0.00041369,31]
[330035683,1718956634439,-500.0,0.00041369,31]
[330035684,1718956634462,-500.0,0.00041369,31]
[330035685,1718956634485,-5000.0,0.00041369,31]
[330035686,1718956634508,-500.0,0.00041369,31]
[330035687,1718956634531,-539.88083737,0.00041369,31]
[330035688,1718956634554,-985.84,0.00041369,31]
[330035689,1718956634577,-500.0,0.00041369,31]
[330035690,1718956634600,-500.0,0.00041369,31]
[330035691,1718956634626,-250.0,0.00041369,31]
[330035692,1718956634649,-500.0,0.00041369,31]
[330035693,1718956634673,-3042.3,0.00041369,31]
[330035694,1718956634698,-500.0,0.00041369,31]
[330035695,1718956634723,-1888.63,0.00041369,31]
[330035696,1718956634749,-500.0,0.00041369,31]
[330035697,1718956634776,-710.95,0.00041369,31]
[330035698,1718956634803,-500.0,0.00041369,31]
[330035699,1718956634832,-1540.74,0.00041369,31]
[330035700,1718956634858,-500.0,0.00041369,31]
[330035701,1718956634886,-707.0,0.00041369,31]
[330035702,1718956634912,-725.5,0.00041369,31]
[330035703,1718956634936,-500.0,0.00041369,31]
[330035704,1718956634961,-967.38,0.00041369,31]
[330035705,1718956634985,-500.0,0.00041369,31]
[330035706,1718956635009,-500.0,0.00041369,31]
[330035707,1718956635035,-3436.64,0.00041369,31]
[330035708,1718956635060,-3397.96,0.00041369,31]
[330035709,1718956635085,-781.3,0.00041369,31]
[330035710,1718956635110,-500.0,0.00041369,31]
[330035711,1718956635135,-500.0,0.00041369,31]
[330035712,1718956635159,-626.45,0.00041369,31]
[330035713,1718956635183,-500.0,0.00041369,31]
[330035714,1718956635207,-572.6,0.00041369,31]
[330035715,1718956635232,-500.0,0.00041369,31]
[330035716,1718956635257,-1748.28,0.00041369,31]
[330035717,1718956635282,-500.0,0.00041369,31]
[330035718,1718956635307,-2804.38,0.00041369,31]
[330035719,1718956635540,-500.0,0.00041369,31]
[330035720,1718956635566,-2000.0,0.00041369,31]
[330035721,1718956635594,-500.0,0.00041369,31]
[330035722,1718956635620,-975.32,0.00041369,31]
[330035723,1718956635648,-931.79,0.00041369,31]
[330035724,1718956635673,-500.0,0.00041369,31]
[330035725,1718956635698,-1315.17,0.00041369,31]
[330035726,1718956635723,-9022.07,0.00041369,31]
[330035727,1718956635747,-500.0,0.00041369,31]
[330035728,1718956635772,-1068.25,0.00041369,31]
[330035729,1718956635797,-866.81,0.00041369,31]
[330035730,1718956635822,-1759.65,0.00041369,31]
[330035731,1718956635852,-520.05,0.00041369,31]
[330035732,1718956635879,-500.0,0.00041369,31]
[330035733,1718956635906,-864.34,0.00041369,31]
[330035734,1718956635932,-1968.37,0.00041369,31]
[330035735,1718956635956,-503.52447314,0.00041369,31]
[330035736,1718956635981,-500.0,0.00041369,31]
[330035737,1718956636008,-1120.37,0.00041369,31]
[330035738,1718956636033,-500.0,0.00041369,31]
[330035739,1718956636058,-572.29,0.00041369,31]
[330035740,1718956636083,-500.0,0.00041369,31]
[330035741,1718956636109,-2215.25,0.00041369,31]
[330035742,1718956636137,-4387.05,0.00041369,31]
[330035743,1718956636162,-5668.6,0.00041369,31]
[330035744,1718956636187,-500.0,0.00041369,31]
[330035745,1718956636213,-514.17,0.00041369,31]
[330035746,1718956636239,-500.0,0.00041369,31]
[330035747,1718956636264,-500.0,0.00041369,31]
[330035748,1718956636288,-1207.43,0.00041369,31]
[330035749,1718956636313,-705.81,0.00041369,31]
[330035750,1718956636338,-500.0,0.00041369,31]
[330035751,1718956636362,-1358.37,0.00041369,31]
[330035752,1718956636388,-500.0,0.00041369,31]
[330035753,1718956636412,-2288.87,0.00041369,31]
[330035754,1718956636436,-500.0,0.00041369,31]
[330035755,1718956636461,-1558.75,0.00041369,31]
[330035756,1718956636485,-500.0,0.00041369,31]
[330035757,1718956636509,-488.72220386,0.00041369,31]
[330035758,1718956636533,-500.0,0.00041369,31]
[330035759,1718956636558,-1836.87,0.00041369,31]
[330035760,1718956636582,-625.32,0.00041369,31]
[330035761,1718956636606,-3050.92,0.00041369,31]
[330035762,1718956636630,-500.0,0.00041369,31]
[330035763,1718956636656,-1747.68,0.00041369,31]
[330035764,1718956636681,-1268.04,0.00041369,31]
[330035765,1718956636706,-500.0,0.00041369,31]
[330035766,1718956636730,-1179.68,0.00041369,31]
[330035767,1718956636755,-500.0,0.00041369,31]
[330035768,1718956636780,-2360.82,0.00041369,31]